{"text_format":"1","workbook":"xlsx","n_sheets":3,"sheets":["Лист1","Лист2","Лист3"],"not_rendered":{"charts":0,"images":0,"macros":0,"external_links":0,"defined_names":2,"comments":0,"pivot_tables":0},"unopened":[],"bounds":{"document_bytes":16777216,"sheet_cells":100000,"rows_first":2000,"rows_last":500,"rows_between":2000,"halvings":0,"cell_chars":16384,"cell_head_chars":4096},"cells_cut":0,"cells_raw":0,"read":"whole","date_system":"1900"}

{"sheet":"Лист1","index":0,"n_rows":0,"n_cols":0,"rows_kept":0,"cut":false,"hidden":false,"merged":[]}

{"sheet":"Лист2","index":1,"n_rows":0,"n_cols":0,"rows_kept":0,"cut":false,"hidden":false,"merged":[]}

{"sheet":"Лист3","index":2,"n_rows":203,"n_cols":6,"rows_kept":203,"cut":false,"hidden":false,"merged":[[13,0,13,5],[16,5,18,5],[16,0,18,0],[16,2,18,2],[9,0,9,5],[10,0,10,5],[11,0,11,5],[12,0,12,5],[16,1,18,1],[16,3,18,3],[16,4,18,4]]}
[null,null,null,null,null,"Приложение 5"]
[]
[null,null,null,null,null,"к решению совета депутатов"]
[null,null,null,null,null,"муниципального образования"]
[null,null,null,null,null,"Старопольское сельское поселение"]
[null,null,null,null,null,"Сланцевского муниципального района"]
[null,null,null,null,null,"Ленинградской области"]
[null,null,null,null,null,"от 29.03.2013  № 218    "]
[]
["РАСПРЕДЕЛЕНИЕ"]
["расходов местного бюджета по ведомственной классификации"]
["расходов бюджетов Российской федерации"]
["СТАРОПОЛЬСКОЕ СЕЛЬСКОЕ ПОСЕЛЕНИЕ СЛАНЦЕВСКОГО МУНИЦИПАЛЬНОГО РАЙОНА"]
["Ленинградской области на 2013 год"]
[]
["тыс. руб."]
["Наименование","КВСР","КФСР","КЦСР","КВР","Бюджетные ассигнования на год"]
[]
[]
["Администрация Старопольского сельского поселения","816","","","",{"$f":"F21+F57+F69+F85+F149+F156+F194+F179+F52+F188","v":15554.599999999999}]
["Общегосударственные вопросы",816,"0100",null,null,{"$f":"F22+F28+F35+F38+F42+F45+F48","v":4902.2}]
["Функционирование законодательных (представительных) органов государственной власти и представительных органов муниципальных образований",816,"0103",null,null,176.2]
["Местная администрация и ее структурные подразделения",816,"0103","0020400",null,{"$f":"F24","v":160.1}]
["Выполнение функций органами местного самоуправления",816,"0103","0020400","500",160.1]
["Межбюджетные трансферты бюджетам муниципальных районов из бюджетов поселений и межбюджетные трансферты бюджетам поселений из бюджетов муниципальных районов на осуществление части полномочий по решению вопросов местного значения в соответствии с заключенными соглашениями",816,"0103","5210600",null,{"$f":"F26","v":16.100000000000001}]
["Межбюджетные трансферты бюджетам муниципальных районов из бюджетов поселений на осуществление части полномочий  по решению вопросов местного значения в части контрольно-счетного органа поселения",816,"0103","5210602",null,{"$f":"F27","v":16.100000000000001}]
["Иные межбюджетные трансферты ",816,"0103","5210602","017",16.100000000000001]
["Функционирование Правительства Российской Федерации, высших исполнительных органов государственной власти субъектов Российской Федерации, местных администраций ",816,"0104",null,null,{"$f":"F29+F31+F33","v":4676}]
["Местная администрация и ее структурные подразделения",816,"0104","0020400",null,{"$f":"F30","v":3943.8}]
["Выполнение функций органами местного самоуправления",816,"0104","0020400","500",3943.8]
["Глава местной администрации (исполнительно-распорядительного органа муниципального образования)",816,"0104","0020800",null,{"$f":"F32","v":722.2}]
["Выполнение функций органами местного самоуправления",816,"0104","0020800","500",722.2]
["Осуществление отдельного государственного полномочия Ленинградсской области в сфере административных правоотношений",816,"0104","5210223",null,{"$f":"F34","v":10}]
["Выполнение функций органами местного самоуправления",816,"0104","5210223","500",10]
["Осуществление деятельности финансовых, налоговых и таможенных органов и органов финансового (финансово-бюджетного) надзора",816,"0106",null,null,{"$f":"F36","v":0}]
["Межбюджетные трансферты бюджетам муниципальных районов из бюджетов поселений и межбюджетные трансферты бюджетам поселений из бюджетов муниципальных районов на осуществление части полномочий по решению вопросов местного значения в соответствии с заключенными соглашениями",816,"0106","5210600",null,{"$f":"F37","v":0}]
["Иные межбюджетные трансферты",816,"0106","5210600","017"]
["Обеспечение проведения выборов и референдумов",816,"0107",null,null,{"$f":"F39","v":0}]
["Проведение выборов и референдумов",816,"0107","0200000",null,{"$f":"F40","v":0}]
["Проведение выборов в представительные органы муниципального образования",816,"0107","0200002",null,{"$f":"F41","v":0}]
["Выполнение функций органами местного самоуправления",816,"0107","0200002","500"]
["Резервные фонды ",816,"0111",null,null,{"$f":"F43","v":10}]
["Резервные фонды местных администраций по ликвидации чрезвичайных ситуаций",816,"0111","0700502",null,{"$f":"F44","v":10}]
["Прочие расходы",816,"0111","0700502","013",10]
["Другие общегосударственные вопросы",816,"0113",null,null,{"$f":"F46+F50+F48","v":40}]
["Выполнение других обязательств муниципальных образований",816,"0113","0920300",null,{"$f":"F47","v":40}]
["Выполнение функций органами местного самоуправления",816,"0113","0920300","500",40]
["Обеспечение мероприятий по реформированию государственной и муниципальной службы",816,"0113","0928400",null,{"$f":"F49","v":0}]
["Выполнение функций органами местного самоуправления",816,"0113","0928400","500"]
["Целевые программы муниципальных образований",816,"0113","7950000",null,{"$f":"F51","v":0}]
["Выполнение функций органами местного самоуправления",816,"0113","7950000","500"]
["Национальная оборона",816,"0200",null,null,{"$f":"F53","v":200}]
["Мобилизационная  и вневойсковая подготовка",816,"0203",null,null,{"$f":"F54","v":200}]
["Руководство и управление в сфере установленных функций",816,"0203","0010000",null,{"$f":"F55","v":200}]
["Осуществление первичного воинского учета на территориях, где отсутствуют военные комиссариаты",816,"0203","0013600",null,{"$f":"F56","v":200}]
["Выполнение функций органами местного самоуправления",816,"0203","0013600","500",200]
["Национальная безопасность и правоохранительная деятельность",816,"0300",null,null,{"$f":"F58+F61","v":968}]
["Органы внутренних дел",816,"0302",null,null,{"$f":"F59","v":0}]
["Пособия и компенсации военнослужащим, приравненным к ним лицам, а также уволенным из их числа",816,"0302","2027600",null,{"$f":"F60","v":0}]
["Социальные выплаты",816,"0302","2027600","005"]
["Защита населения и территории от чрезвычайных ситуаций природного и техногенного характера, гражданская оборона",816,"0309",null,null,{"$f":"F62+F64+F66","v":968}]
["Предупреждение и ликвидация последствий чрезвычайных ситуаций и стихийных бедствий природного и техногенного характера",816,"0309","2180100",null,{"$f":"F63","v":938}]
["Выполнение функций органами местного самоуправления",816,"0309","2180100","500",938]
["Подготовка населения и организаций к действиям в чрезвычайной ситуации в мирное и военное время",816,"0309","2190100",null,{"$f":"F65","v":0}]
["Функционирование органов в сфере национальной безопасности, правоохранительной деятельности и обороны",816,"0309","2190100","500"]
["Целевые программы муниципальных образований",816,"0309",7950000,null,{"$f":"F68","v":30}]
["Муниципальная целевая программа \"Обеспечение первичных мер пожарной безопасности на территории муниципального образования Старопольское сельское поселение на 2011-2015 гг\"",816,"0309",7951406,null,{"$f":"F68","v":30}]
["Выполнение функций органами местного самоуправления",816,"0309",7951406,"500",30]
["Национальная экономика",816,"0400",null,null,{"$f":"F73+F80+F70","v":690}]
["Общеэкономические вопросы",816,"0401",null,null,{"$f":"F71","v":0}]
["Осуществление полномочий Российской Федерации в области содействия занятости населения, включая расходы по осуществлению этих полномочий ",816,"0401",5100200,null,{"$f":"F72","v":0}]
["Выполнение функций органами местного самоуправления",816,"0401",5100200,"500",0]
["Дорожное хозяйство (дорожные фонды)",816,"0409",null,null,{"$f":"F74+F76+F78","v":450}]
["Ремонт и содержание автомобильных дорог местного значения",816,"0409",3150110,null,{"$f":"F75","v":450}]
["Выполнение функций органами местного самоуправления",816,"0409",3150110,"500",450]
["Мероприятия по капитальному ремонту и ремонту дворовых территорий многоквартирных домов, проездов к дворовым территориям многоквартирных домов населенных пунктов Ленинградской области",816,"0409",5224011,null,{"$f":"F77","v":0}]
["Выполнение функций органами местного самоуправления",816,"0409",5224011,"500",0]
["Мероприятия по капитальному ремонту и ремонту автомобильных дорог общего пользования местного значения, в том числе в населенных пунктах Ленинградской области ",816,"0409",5224013,null,{"$f":"F79","v":0}]
["Выполнение функций органами местного самоуправления",816,"0409",5224013,"500",0]
["Другие вопросы в области национальной экономики",816,"0412",null,null,{"$f":"F83+F81","v":240}]
["Мероприятия в области строительства,архитектуры и градостроительства",816,"0412",3380000,null,{"$f":"F82","v":0}]
["Выполнение функций органами местного самоуправления",816,"0412",3380000,"500"]
["Мероприятия по землеустройству и землепользованию",816,"0412",3400300,null,{"$f":"F84","v":240}]
["Выполнение функций органами местного самоуправления",816,"0412",3400300,"500",240]
["Жилищно-коммунальное хозяйство",816,"0500",null,null,{"$f":"F86+F111+F133","v":1726.3}]
["Жилищное хозяйство",816,"0501",null,null,{"$f":"F87+F94+F96+F105+F108","v":534}]
["Обеспечение мероприятий по капитальному ремонту многоквартирных домов и переселению граждан из аварийного жилищного фонда ",816,"0501","0980000",null,{"$f":"F88+F91","v":0}]
["Обеспечение мероприятий по капитальному ремонту многоквартирных домов и переселению граждан из аварийного жилищного фонда за счет средств, поступивших от государственной корпорации Фонд содействия реформированию жилищно-коммунального хозяйства ",816,"0501","0980100",null,{"$f":"F89","v":0}]
["Обеспечение мероприятий по капитальному ремонту многоквартирных домов за счет средств, поступивших от государственной корпорации Фонд содействия реформированию жилищно-коммунального хозяйства ",816,"0501","0980101",null,{"$f":"F90","v":0}]
["Субсидии юридическим лицам",816,"0501","0980101","006",0]
["Обеспечение мероприятий по капитальному ремонту многоквартирных домов и переселению граждан из аварийного жилищного фонда за счет средств бюджетов",816,"0501","0980200",null,{"$f":"F92","v":0}]
["Обеспечение мероприятий по капитальному ремонту многоквартирных домов за счет средств бюджетов ",816,"0501","0980201",null,{"$f":"F93","v":0}]
["Субсидии юридическим лицам",816,"0501","0980201","006",0]
["Переселение граждан из жилищного фонда, признанного непригодным для проживания, и (или) жилищного фонда с высоким уровнем износа (более 70 процентов)",816,"0501",1040400,null,{"$f":"F95","v":0}]
["Бюджетные инвестиции",816,"0501",1040400,"003"]
["Поддержка жилищного хозяйства",816,"0501","3500000",null,{"$f":"F97+F99","v":534}]
["Капитальный ремонт государственного жилищного фонда субъектов Российской Федерации  и муниципального жилищного фонда",816,"0501","3500200",null,{"$f":"F98","v":240}]
["Выполнение функций органами местного самоуправления",816,"0501","3500200","500",240]
["Мероприятия в области жилищного хозяйства ",816,"0501","3500300",null,{"$f":"F100+F103+F101","v":294}]
["Субсидии юридическим лицам",816,"0501","3500300","006",0]
["Прочие мероприятия в области жилищного хозяйства",816,"0501","3500301",null,{"$f":"F102","v":234}]
["Выполнение функций органами местного самоуправления",816,"0501","3500301","500",234]
["Ремонт дворовых территорий, проездов к дворовым территориям многоквартирных домов",816,"0501","3500302",null,{"$f":"F104","v":60}]
["Выполнение функций органами местного самоуправления",816,"0501","3500302","500",60]
["Целевые программы муниципальных образований",816,"0501",7950000,null,{"$f":"F106+F107","v":0}]
["Бюджетные инвестиции",816,"0501","7950000","003"]
["Выполнение функций органами местного самоуправления",816,"0501","7950000","500"]
["Целевые программы муниципальных образований",816,"0501",7950000,null,{"$f":"F109","v":0}]
["Муниципальная адресная программа \"Проведение капитального ремонта многоквартирных домов, расположенных на территориии  муниципального образования Старопольское сельское поселение в 2012 году\"",816,"0501","7953406",null,{"$f":"F110","v":0}]
["Выполнение функций органами местного самоуправления",816,"0501","7953406","500",0]
["Коммунальное хозяйство",816,"0502",null,null,{"$f":"F114+F117+F128+F131+F126+F112","v":161.5}]
[null,816,"0502","0700401",null,{"$f":"F113","v":0}]
[null,816,"0502","0700401","500",0]
["Бюджетные инвестиции в объекты капитального строительства собственности муниципальных образований ",816,"0502",1020102,null,{"$f":"F115+F116","v":0}]
["Бюджетные инвестиции",816,"0502",1020102,"003"]
["Выполнение функций органами местного самоуправления",816,"0502",1020102,"500"]
["Поддержка коммунального хозяйства ",816,"0502","3510000",null,{"$f":"F118+F120+F122","v":161.5}]
["Компенсация выпадающих доходов организациям, предоставляющим населению услуги теплоснабжения по тарифам, не обеспечивающим возмещение издержек",816,"0502","3510200",null,{"$f":"F119","v":0}]
["Субсидии юридическим лицам",816,"0502","3510200","006",0]
["Компенсация выпадающих доходов организациям, предоставляющим населению услуги водоснабжения и водоотведения по тарифам, не обеспечивающим возмещение издержек",816,"0502","3510300",null,{"$f":"F121","v":0}]
["Субсидии юридическим лицам",816,"0502","3510300","006",0]
["Мероприятия в области коммунального хозяйства",816,"0502","3510500",null,{"$f":"F123+F124","v":161.5}]
["Субсидии юридическим лицам",816,"0502","3510500","006",0]
["Прочие мероприятия в области коммунального хозяйства",816,"0502","3510505",null,{"$f":"F125","v":161.5}]
["Выполнение функций органами местного самоуправления",816,"0502","3510505","500",161.5]
["Средства бюджетам муниципальных образований на проведение непредвиденных работ и других неотложных мероприятий, направленных на обеспечение устойчивого функционирования объектов ЖКХ",816,"0502","5210306",null,{"$f":"F127","v":0}]
["Субсидии юридическим лицам",816,"0502","5210306","006",0]
["Региональные целевые программы",816,"0502",5220000,null,{"$f":"F129","v":0}]
["Региональная целевая программа \"Предупредждение ситуаций, связанных с нарушением функционирования  объектов жилищно-коммунального хозяйства Ленинградской области, в в 2008-2011 годах\"",816,"0502",5226800,null,{"$f":"F130","v":0}]
["Бюджетные инвестиции",816,"0502",5226800,"003",{"$f":"93.7-93.7","v":0}]
["Целевые программы муниципальных образований",816,"0502",7950000,null,{"$f":"F132","v":0}]
["Бюджетные инвестиции",816,"0502",7950000,"003"]
["Благоустройство",816,"0503",null,null,{"$f":"F134+F136+F138+F140+F142+F144+F146","v":1030.8}]
["Резервный фонд Правительства Ленинградской области",816,"0503","0700401",null,{"$f":"F135","v":0}]
["Выполнение функций органами местного самоуправления",816,"0503","0700401","500",0]
["Уличное освещение",816,"0503","6000100",null,{"$f":"F137","v":520}]
["Выполнение функций органами местного самоуправления",816,"0503","6000100","500",520]
["Строительство и содержание автомобильных дорог и инженерных сооружений на них в границах городских округов и поселений в рамках благоустройства",816,"0503","6000200",null,{"$f":"F139","v":0}]
["Выполнение функций органами местного самоуправления",816,"0503","6000200","500",0]
["Озеленение",816,"0503","6000300",null,{"$f":"F141","v":70}]
["Выполнение функций органами местного самоуправления",816,"0503","6000300","500",70]
["Организация и содержание мест захоронения",816,"0503","6000400",null,{"$f":"F143","v":73}]
["Выполнение функций органами местного самоуправления",816,"0503","6000400","500",73]
["Прочие мероприятия по благоустройству городских округов и поселений",816,"0503","6000500",null,{"$f":"F145","v":367.8}]
["Выполнение функций органами местного самоуправления",816,"0503","6000500","500",367.8]
["Целевые программы муниципальных образований",816,"0503",7950000,null,{"$f":"F147+F148","v":0}]
["Бюджетные инвестиции",816,"0503",7950000,"003"]
["Выполнение функций органами местного самоуправления",816,"0503",7950000,"500"]
["Образование",816,"0700",null,null,{"$f":"F150","v":31.3}]
["Молодежная политика и оздоровление детей",816,"0707",null,null,{"$f":"F151+F154","v":31.3}]
["Проведение мероприятий для детей и молодежи",816,"0707","4310100",null,{"$f":"F153","v":31.3}]
["Организация занятости детей и молодежи",816,"0707","4310102",null,{"$f":"F153","v":31.3}]
["Выполнение функций органами местного самоуправления",816,"0707","4310102","500",31.3]
["Целевые программы муниципальных образований",816,"0707","7950000",null,{"$f":"F155","v":0}]
["Проведение мероприятий для детей и молодежи",816,"0707","7950000","447"]
["Культура и кинематография ",816,"0800",null,null,{"$f":"F157","v":6917.8}]
["Культура ",816,"0801",null,null,{"$f":"F158+F161+F170+F164+F176+F167","v":6917.8}]
["Дворцы и дома культуры, другие учреждения культуры и средств массовой информации",816,"0801","4400000",null,{"$f":"F159","v":5990.6}]
["Обеспечение деятельности подведомственных учреждений",816,"0801","4409900",null,{"$f":"F160","v":5990.6}]
["Выполнение функций казенными учреждениями",816,"0801","4409900","001",5990.6]
["Библиотеки",816,"0801","4420000",null,{"$f":"F162","v":927.2}]
["Обеспечение деятельности подведомственных учреждений",816,"0801","4429900",null,{"$f":"F163","v":927.2}]
["Выполнение функций казенными учреждениями",816,"0801","4429900","001",927.2]
["Мероприятия в сфере культуры, кинематографии и средств массовой информации ",816,"0801","4500000",null,{"$f":"F165","v":0}]
["Комплектование книжных фондов библиотек муниципальных образований",816,"0801","4500600",null,{"$f":"F166","v":0}]
["Выполнение функций бюджетными учреждениями",816,"0801","4500600","001"]
["Межбюджетные трансферты ",816,"0801","5210000",null,{"$f":"F168","v":0}]
["Обеспечение стимулирующих выплат основному персоналу муниципальных музеев и библиотек",816,"0801","5210136","001",{"$f":"F169","v":0}]
["Выполнение функций бюджетными учреждениями",816,"0801","5210136","001",0]
["Региональные целевые программы",816,"0801","5220000",null,{"$f":"F173+F174+F171","v":0}]
["Долгосрочная целевая программа \"Развитие информационного общества Ленинградской области\" на 2011-2012 годы",816,"0801","5220400",null,{"$f":"F172","v":0}]
["Выполнение функций бюджетными учреждениями",816,"0801","5220400","001",0]
["Мероприятия в сфере культуры",816,"0801","5220000","023",{"$f":"65+6-71","v":0}]
["Капитальный ремонт сельских учреждений культуры в рамках реализации региональной целевой программы \"Социальное развитие села до 2010 года\"",816,"0801","5224104",null,{"$f":"F175","v":0}]
["Мероприятия в сфере культуры",816,"0801","5224104","024",0]
["Целевые программы муниципальных образований",816,"0801","7950000",null,{"$f":"F178","v":0}]
["Муниципальная целевая программа \"Обеспечение первичных мер пожарной безопасности на территории муниципального образования Старопольское сельское поселение на 2011-2015 гг\"",816,"0801","7951406",null,{"$f":"F178","v":0}]
["Мероприятия в сфере культуры",816,"0801","7951406","024",0]
["Социальная политика",816,"1000",null,null,{"$f":"F180+F183","v":118.3}]
["Пенсионное обеспечение",816,"1001",null,null,{"$f":"F181","v":118.3}]
["Доплаты к пенсиям муниципальных служащих",816,"1001",4910100,null,{"$f":"F182","v":118.3}]
["Социальные выплаты",816,"1001",4910100,"005",118.3]
["Социальное обеспечение населения",816,"1003",null,null,{"$f":"F186+F184","v":0}]
["Подпрограмма «Обеспечение жильем молодых семей»",816,"1003",1040200,null,{"$f":"F185","v":0}]
["Субсидии на обеспечение жильем",816,"1003",1040200,"501"]
["Мероприятия в области социальной политики",816,"1003",5053300,null,{"$f":"F187","v":0}]
["Социальные выплаты",816,"1003",5053300,"005",0]
["Физическая культура и спорт",816,"1100",null,null,{"$f":"F189","v":0}]
["Массовый спорт",816,"1102",null,null,{"$f":"F190+F192","v":0}]
["Мероприятия в области здравоохранения, спорта и физической культуры, туризма ",816,"1102","5129700",null,{"$f":"F191","v":0}]
["Выполнение функций органами местного самоуправления",816,"1102","5129700","500",0]
["Целевые программы муниципальных образований",816,"1102",7950000,null,{"$f":"F193","v":0}]
["Мероприятия в области здравоохранения, спорта и физической культуры",816,"1102",7950000,"079"]
["Обслуживание государственного и муниципального долга",816,"1300",null,null,{"$f":"F195","v":0.7}]
["Обслуживание внутреннего государственного и муниципального долга",816,"1301",null,null,{"$f":"F196","v":0.7}]
["Процентные платежи по муниципальному долгу",816,"1301","0650300",null,{"$f":"F197","v":0.7}]
["Прочие расходы",816,"1301","0650300","013",0.7]
["Комитет финансов администрации муниципального образования Сланцевский муниципальный район Ленинградской области",null,"","","",{"$f":"F200","v":0}]
["Общегосударственные вопросы",null,"0100",null,null,{"$f":"F200","v":0}]
["Осуществление деятельности финансовых, налоговых и таможенных органов и органов финансового (финансово-бюджетного) надзора",null,"0106",null,null,{"$f":"F201","v":0}]
["Межбюджетные трансферты бюджетам муниципальных районов из бюджетов поселений и межбюджетные трансферты бюджетам поселений из бюджетов муниципальных районов на осуществление части полномочий по решению вопросов местного значения в соответствии с заключенными соглашениями",null,"0106","5210600",null,{"$f":"F202","v":0}]
["Иные межбюджетные трансферты",null,"0106","5210600","017"]
["ИТОГО ",null,null,null,null,{"$f":"F20","v":15554.599999999999}]